bitfinex/quotes_SOLUSD_20250731
["timestamp","ask_amount","ask_price","bid_price","bid_amount"]
[1753975332524,27.34655522,176.69,176.66,0.2]
[1753975332700,52.64655522,176.67,176.66,1e-08]
[1753975333021,103.28842647,176.67,176.66,1e-08]
[1753975333225,103.28842647,176.67,176.64,0.2]
[1753975333226,9.86187125,176.65,176.64,1e-08]
[1753975333404,16.09028733,176.65,176.64,1e-08]
[1753975333607,23.71310005,176.65,176.64,1e-08]
[1753975333811,74.3549713,176.65,176.64,1e-08]
[1753975334011,32.22841608,176.65,176.64,1e-08]
[1753975334326,77.22937593,176.65,176.64,1e-08]
[1753975334506,77.92937593,176.65,176.64,1e-08]
[1753975334710,0.56750468,176.65,176.64,1e-08]
[1753975335234,0.56750468,176.66,176.64,1e-08]
[1753975336532,0.56750468,176.7,176.65,10.58187125]
[1753975336724,0.56750468,176.7,176.67,9.86187125]
[1753975336910,0.56750468,176.7,176.66,10.58187125]
[1753975338807,0.56750468,176.7,176.66,16.24242159]
[1753975339125,0.56750468,176.72,176.68,9.86187125]
[1753975339326,0.56750468,176.72,176.68,10.58187125]
[1753975339522,0.56750468,176.72,176.69,0.72]
[1753975340108,0.56750468,176.72,176.69,15.52142119]
[1753975340329,0.56750468,176.72,176.7,0.72]
[1753975340634,0.56750468,176.72,176.66,2.2905]
[1753975340635,11.12937593,176.72,176.66,2.2905]
[1753975340833,11.12937593,176.72,176.67,9.86187125]
[1753975341137,16.78809997,176.72,176.67,9.86187125]
[1753975341335,0.7,176.71,176.67,9.86187125]
[1753975341549,9.86187125,176.68,176.65,6.5346]
[1753975341740,0.56750468,176.68,176.65,6.5346]
[1753975341924,0.56750468,176.68,176.65,7.2546]
[1753975342731,0.56750468,176.69,176.65,7.2546]
[1753975343321,0.56750468,176.69,176.66,10.58187125]
[1753975343543,0.56750468,176.69,176.66,6.38049389]
[1753975343841,0.56750468,176.72,176.68,9.86187125]
[1753975344213,0.56750468,176.72,176.69,0.72]
[1753975344412,188.1,176.73,176.71,9.86187125]
[1753975344629,188.1,176.73,176.72,10.58187125]
[1753975344630,147.3,176.73,176.72,10.58187125]
[1753975344849,147.3,176.73,176.72,9.86187125]
[1753975345140,147.3,176.73,176.72,10.58187125]
[1753975345344,17.51468397,176.8,176.72,10.58187125]
[1753975345345,148.03,176.8,176.72,10.58187125]
[1753975345518,147.33,176.8,176.79,9.86187125]
[1753975345723,0.03,176.8,176.79,9.86187125]
[1753975345928,0.03,176.8,176.78,9.86187125]
[1753975346139,0.03,176.8,176.78,10.58187125]
[1753975346326,0.03,176.8,176.78,9.86187125]
[1753975346728,0.03,176.8,176.77,9.86187125]
[1753975346943,0.03,176.8,176.76,0.72]
[1753975346944,0.03,176.8,176.78,9.86187125]
[1753975347327,0.03,176.8,176.78,10.58187125]
[1753975347743,0.7,176.79,176.74,6.1267]
[1753975347950,9.86187125,176.77,176.71,2.2452]
[1753975348145,10.42937593,176.76,176.71,12.10707125]
[1753975348452,0.56750468,176.76,176.72,9.86187125]
[1753975348625,0.56750468,176.76,176.72,10.58187125]
[1753975349762,41.36750468,176.79,176.75,9.86187125]
[1753975349964,41.36750468,176.79,176.76,9.86187125]
[1753975350724,56.88589594,176.79,176.73,9.86187125]
[1753975351018,10.56187125,176.78,176.72,9.86187125]
[1753975351228,0.56750468,176.77,176.72,9.86187125]
[1753975351428,9.86187125,176.73,176.67,1.5785]
[1753975351631,6.22631485,176.72,176.68,9.86187125]
[1753975351833,16.22025702,176.73,176.68,10.58187125]
[1753975352143,0.56750468,176.72,176.69,0.72]
[1753975352345,9.86187125,176.7,176.67,1.5785]
[1753975352545,10.56187125,176.71,176.67,1.5785]
[1753975352928,6.22589045,176.73,176.67,1.5785]
[1753975352929,9.86187125,176.72,176.67,11.44037125]
[1753975353144,0.56750468,176.71,176.67,12.16037125]
[1753975353347,0.56750468,176.71,176.68,0.72]
[1753975353527,0.56750468,176.71,176.67,11.44037125]
[1753975353729,0.56750468,176.71,176.69,0.72]
[1753975354227,0.56750468,176.72,176.67,11.44037125]
[1753975354642,0.56750468,176.72,176.68,0.66]
[1753975355233,10.42937593,176.72,176.67,11.44037125]
[1753975355441,1.22750468,176.72,176.67,11.44037125]
[1753975355744,11.08937593,176.72,176.67,1.5785]
[1753975355946,16.74811358,176.72,176.67,12.10037125]
[1753975356741,16.08811358,176.72,176.67,17.7606371]
[1753975356934,6.22624233,176.72,176.68,10.52187125]
[1753975357549,147.3,176.71,176.68,10.52187125]
[1753975357848,147.3,176.71,176.68,0.66]
[1753975358343,147.3,176.71,176.68,16.18177849]
[1753975358544,147.3,176.71,176.68,10.52187125]
[1753975360056,147.3,176.71,176.68,9.86187125]
[1753975360234,147.3,176.71,176.67,7.23875302]
[1753975360235,147.3,176.71,176.67,17.10062427]
[1753975360858,147.3,176.71,176.67,17.76062427]
[1753975361586,147.3,176.71,176.7,9.86187125]
[1753975361753,147.96,176.79,176.7,50.66187125]
[1753975362064,147.86750468,176.78,176.75,9.86187125]
[1753975362357,147.3,176.77,176.75,9.86187125]
[1753975363155,147.3,176.77,176.76,9.86187125]
[1753975363931,147.3,176.77,176.76,10.52187125]
[1753975364135,147.3,176.77,176.75,1.6498]
[1753975364337,147.3,176.77,176.76,9.86187125]
[1753975366466,0.03,176.8,176.76,16.17925979]
[1753975366645,0.03,176.8,176.79,9.86187125]
[1753975367172,0.03,176.8,176.79,10.52187125]
[1753975367742,0.03,176.8,176.79,9.86187125]
[1753975368954,0.03,176.8,176.78,5.6567323]
[1753975369165,0.69,176.8,176.75,1.6498]
[1753975369465,0.03,176.8,176.78,9.86187125]
[1753975369835,0.03,176.8,176.79,9.86187125]
[1753975370463,0.03,176.8,176.79,16.17829978]
[1753975370859,0.03,176.8,176.79,10.52187125]
[1753975371160,0.03,176.8,176.79,9.86187125]
[1753975371752,0.69,176.8,176.77,9.86187125]
[1753975372063,0.69,176.8,176.78,9.86187125]
[1753975372245,0.03,176.8,176.78,9.86187125]
[1753975372447,0.03,176.8,176.76,5.65729347]
[1753975372646,0.66,176.79,176.76,9.86187125]
[1753975372837,0.66,176.78,176.76,9.86187125]
[1753975373370,0.66,176.77,176.75,50.64187125]
[1753975373675,147.3,176.78,176.76,9.86187125]
[1753975374674,147.3,176.78,176.77,9.86187125]
[1753975375782,0.03,176.8,176.77,10.52187125]
[1753975375977,0.03,176.8,176.76,9.86187125]
[1753975376141,0.66,176.79,176.76,9.86187125]
[1753975376763,1.22750468,176.78,176.75,50.62187125]
[1753975376969,0.03,176.8,176.77,9.86187125]
[1753975377344,0.03,176.8,176.78,9.86187125]
[1753975378164,6.34618208,176.8,176.77,9.86187125]
[1753975378367,1.22750468,176.79,176.75,40.76]
[1753975378568,1.22750468,176.79,176.77,9.86187125]
[1753975378962,0.66,176.78,176.75,40.76]
[1753975379268,0.66,176.78,176.76,9.86187125]
[1753975380283,6.88457318,176.77,176.71,8.3026]
[1753975380467,154.18457318,176.77,176.73,50.62187125]
[1753975380660,153.6170685,176.77,176.71,8.3026]
[1753975380857,1.22750468,176.76,176.73,9.86187125]
[1753975381057,0.56750468,176.76,176.74,9.86187125]
[1753975381463,147.3,176.77,176.74,9.86187125]
[1753975381647,147.3,176.77,176.76,9.86187125]
[1753975381846,147.3,176.77,176.76,10.52187125]
[1753975382051,147.3,176.77,176.76,51.28187125]
[1753975382281,0.03,176.8,176.77,5.6570685]
[1753975382446,0.03,176.8,176.79,9.86187125]
[1753975382780,0.03,176.8,176.79,11.50957125]
[1753975382954,0.03,176.8,176.79,18.06647125]
[1753975383158,0.03,176.8,176.79,18.72647125]
[1753975383382,0.03,176.8,176.79,21.57232887]
[1753975383885,0.03,176.8,176.79,38.35701284]
[1753975384582,0.03,176.8,176.79,44.01344137]
[1753975384874,0.03,176.8,176.79,84.77344137]
[1753975385465,0.03,176.8,176.79,67.3287574]
[1753975385669,0.03,176.8,176.79,67.9887574]
[1753975385876,0.03,176.8,176.79,65.14289978]
[1753975386477,0.03,176.8,176.79,68.04197144]
[1753975387758,0.03,176.8,176.78,0.56567485]
[1753975387959,0.7,176.8,176.78,9.86187125]
[1753975388157,0.7,176.8,176.78,50.62187125]
[1753975388357,0.03,176.8,176.78,50.62187125]
[1753975388574,0.7,176.8,176.78,9.86187125]
[1753975388858,0.7,176.8,176.74,1.6161]
[1753975388859,11.09937593,176.79,176.74,1.6161]
[1753975389074,0.67,176.78,176.75,9.86187125]
[1753975389458,147.3,176.79,176.75,9.86187125]
[1753975389665,0.67,176.77,176.74,50.62187125]
[1753975389971,0.67,176.76,176.74,40.76]
[1753975390282,0.67,176.75,176.72,50.62187125]
[1753975390467,16.08655487,176.77,176.72,50.62187125]
[1753975390654,0.67,176.76,176.73,9.86187125]
[1753975390857,0.67,176.76,176.72,40.76]
[1753975391058,6.22468362,176.77,176.73,9.86187125]
[1753975391266,0.67,176.76,176.73,9.86187125]
[1753975391871,6.22463026,176.77,176.73,9.86187125]
[1753975392075,0.67,176.76,176.72,40.76]
[1753975392269,16.08650151,176.77,176.72,50.62187125]
[1753975392468,0.67,176.75,176.72,50.62187125]
[1753975392983,16.08650151,176.77,176.73,9.86187125]
[1753975393164,16.75650151,176.77,176.73,9.86187125]
[1753975393581,0.67,176.76,176.72,40.76]
[1753975393772,9.86187125,176.73,176.68,9.86187125]
[1753975393973,0.67,176.72,176.68,50.62187125]
[1753975394163,0.67,176.72,176.69,9.86187125]
[1753975395377,0.56750468,176.73,176.69,9.86187125]
[1753975395574,6.89589701,176.73,176.69,9.86187125]
[1753975395893,0.67,176.72,176.69,9.86187125]
[1753975396786,0.67,176.72,176.68,40.76]
[1753975396787,0.67,176.72,176.68,50.62187125]
[1753975396974,6.22589701,176.73,176.69,9.86187125]
[1753975397170,1.23750468,176.73,176.69,9.86187125]
[1753975397372,6.22511147,176.76,176.72,9.86187125]
[1753975397573,9.86187125,176.75,176.7,0.66]
[1753975397771,11.09937593,176.74,176.69,40.76]
[1753975398006,0.67,176.73,176.69,50.62187125]
[1753975398374,1.23750468,176.72,176.69,50.62187125]
[1753975398573,0.67,176.72,176.69,50.62187125]
[1753975398992,6.22598176,176.73,176.7,9.86187125]
[1753975399678,6.22558601,176.74,176.71,9.86187125]
[1753975399879,6.22496093,176.76,176.73,9.86187125]
[1753975400171,6.22496093,176.76,176.72,0.66]
[1753975400172,153.52496093,176.76,176.74,9.86187125]
[1753975400377,147.3,176.76,176.75,9.86187125]
[1753975401307,152.95741996,176.76,176.74,9.86187125]
[1753975401472,0.67,176.75,176.72,9.86187125]
[1753975401886,152.95741996,176.76,176.72,9.86187125]
[1753975402376,1.23750468,176.75,176.71,50.62187125]
[1753975402978,6.89534489,176.75,176.71,50.62187125]
[1753975403383,152.95747334,176.76,176.73,9.86187125]
[1753975404496,0.56750468,176.75,176.71,40.76]
[1753975404699,0.56750468,176.75,176.69,26.66]
[1753975404700,0.67,176.74,176.69,26.66]
[1753975404873,1.23750468,176.74,176.7,9.86187125]
[1753975405076,0.67,176.73,176.7,9.86187125]
[1753975405279,6.32840712,176.73,176.7,9.86187125]
[1753975405502,1.23750468,176.72,176.68,50.62187125]
[1753975405794,5.65840712,176.73,176.68,50.62187125]
[1753975405795,6.2259118,176.73,176.7,9.86187125]
[1753975405999,0.56750468,176.74,176.72,9.86187125]
[1753975406213,0.56750468,176.75,176.71,9.86187125]
[1753975406584,0.56750468,176.75,176.72,9.86187125]
[1753975406981,6.22531641,176.75,176.72,9.86187125]
[1753975407373,6.22531641,176.75,176.71,0.66]
[1753975407713,6.22531641,176.75,176.72,9.86187125]
[1753975408197,188.06,176.76,176.73,10.52187125]
[1753975408504,147.3,176.76,176.74,9.86187125]
[1753975408687,147.3,176.76,176.74,10.52187125]
[1753975409094,147.3,176.76,176.75,9.86187125]
[1753975409687,147.3,176.76,176.75,10.52187125]
[1753975409891,147.3,176.76,176.75,9.86187125]
[1753975410208,147.97,176.76,176.72,9.86187125]
[1753975410496,0.67,176.75,176.72,9.86187125]
[1753975410715,1.23750468,176.75,176.69,6.31952305]
[1753975410897,1.23750468,176.75,176.72,9.86187125]
[1753975411094,152.95747995,176.76,176.73,9.86187125]
[1753975412202,152.95747995,176.76,176.72,0.66]
[1753975412203,147.3,176.76,176.75,9.86187125]
[1753975413503,147.3,176.76,176.74,9.86187125]
[1753975413721,1.23750468,176.75,176.71,40.76]
[1753975414008,0.67,176.75,176.71,50.62187125]
[1753975414208,1.23750468,176.75,176.71,50.62187125]
[1753975414417,152.95752091,176.76,176.73,9.86187125]
[1753975415216,158.38937593,176.75,176.71,40.76]
[1753975415406,0.66,176.74,176.71,40.76]
[1753975415602,147.3,176.75,176.71,50.62187125]
[1753975415790,147.96,176.75,176.71,50.62187125]
[1753975415990,0.66,176.74,176.71,40.76]
[1753975416199,147.3,176.75,176.71,50.62187125]
[1753975416488,147.96,176.75,176.71,50.62187125]
[1753975416890,153.61791946,176.75,176.71,50.62187125]
[1753975417102,0.56750468,176.74,176.71,50.62187125]
[1753975417513,153.61791946,176.75,176.71,50.62187125]
[1753975417824,153.61791946,176.75,176.71,40.76]
[1753975418005,0.56750468,176.74,176.71,40.76]
[1753975418189,153.61791946,176.75,176.71,40.76]
[1753975418516,152.95791946,176.75,176.72,9.86187125]
[1753975418888,152.95791946,176.75,176.71,51.33187125]
[1753975419093,147.3,176.75,176.71,51.33187125]
[1753975419301,147.3,176.75,176.73,9.86187125]
[1753975420121,147.3,176.75,176.74,9.86187125]
[1753975420588,0.03,176.77,176.74,51.31187125]
[1753975420789,0.03,176.77,176.76,9.86187125]
[1753975421310,0.03,176.77,176.76,16.22925979]
[1753975421649,0.03,176.77,176.76,10.57187125]
[1753975422614,0.03,176.77,176.76,16.22925979]
[1753975423539,0.03,176.77,176.76,32.35463104]
[1753975424697,0.03,176.77,176.76,22.49275979]
[1753975424886,0.03,176.77,176.76,62.52275979]
[1753975426017,0.03,176.77,176.76,56.25925979]
[1753975426191,0.03,176.77,176.76,15.51925979]
[1753975426393,0.03,176.77,176.76,50.60187125]
[1753975426608,0.03,176.77,176.74,1.5769]
[1753975426806,9.86187125,176.75,176.68,16.05357125]
[1753975427004,9.86187125,176.73,176.69,40.74]
[1753975427198,0.56750468,176.74,176.69,50.60187125]
[1753975427397,0.66,176.73,176.7,9.86187125]
[1753975427598,0.66,176.73,176.69,40.74]
[1753975427797,0.66,176.72,176.69,40.74]
[1753975428009,0.66,176.72,176.69,50.60187125]
[1753975428205,1.22750468,176.74,176.69,40.74]
[1753975428405,10.42937593,176.74,176.69,50.60187125]
[1753975428605,0.66,176.73,176.69,50.60187125]
[1753975428904,0.66,176.73,176.69,56.26149678]
[1753975429111,0.66,176.73,176.69,50.60187125]
[1753975430625,0.66,176.73,176.69,40.74]
[1753975430626,11.08937593,176.72,176.69,40.74]
[1753975430823,0.56750468,176.72,176.69,40.74]
[1753975431020,0.66,176.71,176.69,40.74]
[1753975431318,10.42937593,176.72,176.69,40.74]
[1753975431526,10.52187125,176.71,176.69,40.74]
[1753975431924,0.66,176.71,176.69,40.74]
[1753975432131,1.22750468,176.71,176.69,40.74]
[1753975432425,6.88651202,176.71,176.69,40.74]
[1753975432819,6.88651202,176.71,176.66,40.74]
[1753975432820,157.82187125,176.7,176.66,40.74]
[1753975433019,11.08937593,176.69,176.66,40.74]
[1753975433223,0.66,176.68,176.66,40.74]
[1753975433417,1.22750468,176.67,176.66,40.74]
[1753975433709,1.22750468,176.67,176.64,1e-08]
[1753975433710,0.66,176.67,176.64,40.74000001]
[1753975433915,0.56750468,176.68,176.65,9.86187125]
[1753975434231,0.56750468,176.68,176.65,10.57187125]
[1753975434420,0.56750468,176.68,176.65,51.31187125]
[1753975434735,0.56750468,176.68,176.64,1e-08]
[1753975434913,0.66,176.67,176.64,1e-08]
[1753975435113,10.42937593,176.66,176.64,1e-08]
[1753975435319,1.22750468,176.66,176.64,1e-08]
[1753975436333,0.56750468,176.66,176.64,1e-08]
[1753975436703,0.56750468,176.66,176.65,10.57187125]
[1753975436922,147.3,176.67,176.64,9.86187126]
[1753975437110,1.22750468,176.66,176.64,1e-08]
[1753975437938,0.56750468,176.66,176.64,1e-08]
[1753975438114,1.22750468,176.66,176.64,1e-08]
[1753975438823,0.56750468,176.66,176.64,9.86187126]
[1753975439034,147.3,176.67,176.64,9.86187126]
[1753975439328,0.56750468,176.66,176.64,10.57187126]
[1753975439539,0.56750468,176.66,176.64,9.86187126]
[1753975440121,147.3,176.67,176.64,0.71000001]
[1753975440321,147.3,176.67,176.66,9.86187125]
[1753975440532,147.3,176.67,176.66,10.57187125]
[1753975440728,147.3,176.67,176.66,9.86187125]
[1753975441143,147.3,176.67,176.66,10.57187125]
[1753975441522,147.3,176.71,176.66,10.57187125]
[1753975441829,147.96,176.71,176.68,9.86187125]
[1753975442543,147.3,176.71,176.68,9.86187125]
[1753975442845,1.22750468,176.7,176.66,40.74]
[1753975443019,0.66,176.69,176.66,50.60187125]
[1753975443224,0.66,176.69,176.66,40.74]
[1753975443433,1.22750468,176.68,176.66,9.86187125]
[1753975443633,0.66,176.68,176.66,9.86187125]
[1753975443836,1.22750468,176.7,176.67,9.86187125]
[1753975444347,6.22711772,176.7,176.64,47.11121308]
[1753975444524,0.66,176.69,176.67,9.86187125]
[1753975445848,6.31968978,176.69,176.67,9.86187125]
[1753975446042,0.66,176.69,176.67,9.86187125]
[1753975447049,0.56750468,176.7,176.68,9.86187125]
[1753975447246,0.56750468,176.7,176.68,10.52187125]
[1753975447648,0.56750468,176.7,176.68,9.86187125]
[1753975448336,0.56750468,176.7,176.66,41.4]
[1753975448538,152.95903014,176.71,176.69,9.86187125]
[1753975448539,147.3,176.71,176.69,9.86187125]
[1753975448732,147.3,176.71,176.7,10.52187125]
[1753975449733,147.3,176.71,176.7,9.86187125]
[1753975451154,147.3,176.71,176.7,10.52187125]
[1753975451864,147.3,176.71,176.7,9.86187125]
[1753975452029,147.3,176.71,176.68,53.12365749]
[1753975452450,147.3,176.71,176.7,9.86187125]
[1753975452833,147.96,176.71,176.7,9.86187125]
[1753975453038,147.96,176.71,176.69,9.86187125]
[1753975453243,147.3,176.71,176.7,9.86187125]
[1753975454342,147.3,176.71,176.7,10.52187125]
[1753975454753,147.3,176.71,176.7,6.71813878]
[1753975455154,147.3,176.71,176.7,23.50282275]
[1753975455341,0.03,176.78,176.72,5.65866908]
[1753975455656,0.03,176.78,176.76,12.11627756]
[1753975455857,0.03,176.78,176.76,52.83627756]
[1753975456064,0.03,176.78,176.76,53.49627756]
[1753975456437,0.03,176.78,176.76,6.05813878]
[1753975456741,0.03,176.78,176.76,46.77813878]
[1753975457046,0.03,176.78,176.76,47.43813878]
[1753975458157,0.03,176.78,176.76,52.43552732]
[1753975458353,0.03,176.78,176.76,53.09552732]
[1753975458768,0.03,176.78,176.76,46.37738854]
[1753975459060,0.03,176.78,176.76,52.43552732]
[1753975459249,0.03,176.78,176.76,53.09552732]
[1753975459448,0.03,176.78,176.76,59.1536661]
[1753975462562,0.03,176.78,176.76,47.03738854]
[1753975462745,0.03,176.78,176.76,52.43552732]
[1753975462946,0.03,176.78,176.76,58.4936661]
[1753975463143,0.03,176.78,176.76,59.1536661]
[1753975464538,0.03,176.78,176.76,75.93835007]
[1753975464739,0.03,176.78,176.77,7.28384563]
[1753975464974,0.03,176.78,176.77,33.28384563]
[1753975465665,0.03,176.78,176.77,50.0685296]
[1753975466349,0.03,176.78,176.77,33.28384563]
[1753975467657,0.03,176.78,176.77,38.94091413]
[1753975467982,0.03,176.78,176.77,79.62091413]
[1753975468272,0.03,176.78,176.77,78.96091413]
[1753975468763,0.03,176.78,176.77,96.4055981]
[1753975469063,0.03,176.79,176.78,42.78468397]
[1753975469269,0.03,176.8,176.78,49.50282275]
[1753975469470,0.03,176.8,176.79,76.51589413]
[1753975469976,0.03,176.82,176.81,42.78468397]
[1753975470140,0.03,176.82,176.81,89.52282275]
[1753975470343,147.96,176.92,176.86,26.0]
[1753975470543,147.3,176.92,176.91,6.05813878]
[1753975470747,147.96,176.92,176.91,6.05813878]
[1753975470947,147.3,176.92,176.91,6.05813878]
[1753975472474,147.3,176.92,176.91,11.71073049]
[1753975472772,147.3,176.92,176.91,12.37073049]
[1753975473182,0.1,176.94,176.91,19.98596927]
[1753975473470,0.1,176.94,176.93,12.11627756]
[1753975473673,0.1,176.94,176.93,17.7682303]
[1753975473969,0.1,176.94,176.93,12.37009152]
[1753975474373,0.1,176.94,176.93,11.71009152]
[1753975474754,0.1,176.94,176.93,12.37009152]
[1753975475375,0.1,176.94,176.93,46.71813878]
[1753975475969,0.1,176.94,176.93,40.66]
[1753975476178,0.1,176.94,176.93,46.71813878]
[1753975478756,0.1,176.94,176.93,46.69813878]
[1753975479454,0.1,176.94,176.93,52.35009152]
[1753975479973,0.1,176.94,176.93,46.69813878]
[1753975480178,0.1,176.94,176.93,40.64]
[1753975480378,0.8,176.94,176.92,26.56522722]
[1753975480580,0.7,176.93,176.9,26.0]
[1753975480759,0.7,176.93,176.91,40.64]
[1753975481092,0.1,176.94,176.91,40.64]
[1753975481093,5.75167554,176.94,176.91,40.64]
[1753975481389,0.7,176.92,176.91,40.64]
[1753975481698,0.7,176.92,176.9,40.64]
[1753975481887,0.56750468,176.93,176.9,40.64]
[1753975482056,0.7,176.91,176.89,40.64]
[1753975482259,5.65227711,176.92,176.89,40.64]
[1753975482457,0.7,176.9,176.89,40.64]
[1753975482866,0.7,176.9,176.87,6.05813878]
[1753975483184,6.05813878,176.89,176.85,40.64]
[1753975483378,0.7,176.88,176.85,46.69813878]
[1753975483683,0.7,176.88,176.86,6.05813878]
[1753975484691,0.7,176.87,176.85,46.69813878]
[1753975484893,5.65328754,176.89,176.85,46.69813878]
[1753975485203,0.7,176.86,176.85,46.69813878]
[1753975485487,0.7,176.86,176.82,6.11813878]
[1753975485667,6.62564346,176.85,176.82,40.7]
[1753975485981,0.7,176.84,176.82,40.7]
[1753975486189,0.7,176.83,176.82,40.7]
[1753975487387,6.35514901,176.83,176.82,40.7]
[1753975487890,0.7,176.83,176.82,0.06]
[1753975488383,6.35514901,176.83,176.82,0.06]
[1753975489076,16.2171528,176.83,176.82,0.06]
[1753975489867,16.78465748,176.83,176.82,0.06]
[1753975492994,164.08468397,176.82,176.73,50.50200379]
[1753975493190,153.52329337,176.81,176.77,9.86200379]
[1753975493488,153.52329337,176.81,176.73,40.64]
[1753975493489,147.3,176.8,176.76,9.86200379]
[1753975493701,0.56750468,176.79,176.75,9.86200379]
[1753975493885,0.7,176.78,176.75,9.86200379]
[1753975494477,0.56750468,176.79,176.76,9.86200379]
[1753975494673,0.56750468,176.79,176.77,9.86200379]
[1753975495002,0.56750468,176.79,176.77,10.52200379]
[1753975495178,0.56750468,176.79,176.76,9.86200379]
[1753975495574,6.92394896,176.79,176.75,9.86200379]
[1753975495802,6.22394896,176.79,176.77,9.86200379]
[1753975496101,0.56750468,176.79,176.77,9.86200379]
[1753975496286,0.56750468,176.79,176.77,10.52200379]
[1753975496597,152.95620089,176.8,176.78,10.52200379]
[1753975496598,147.3,176.8,176.78,10.52200379]
[1753975496776,147.3,176.8,176.79,13.50660379]
[1753975496972,147.3,176.8,176.79,14.16660379]
[1753975498273,147.3,176.8,176.79,13.50660379]
[1753975498473,147.3,176.8,176.79,3.6446]
[1753975498776,153.65610859,176.8,176.79,3.6446]
[1753975500289,56.85811238,176.8,176.79,3.6446]
[1753975500802,82.85811238,176.8,176.79,3.6446]
[1753975501011,99.64279635,176.8,176.79,3.6446]
[1753975501800,82.85811238,176.8,176.79,3.6446]
[1753975501997,56.85811238,176.8,176.79,3.6446]
[1753975503181,73.64279635,176.8,176.79,3.6446]
[1753975503902,82.85811238,176.8,176.79,3.6446]
[1753975504280,72.99610859,176.8,176.79,3.6446]
[1753975504598,82.85811238,176.8,176.79,3.6446]
[1753975504794,83.42561706,176.8,176.79,3.6446]
[1753975505002,82.72561706,176.8,176.79,3.6446]
[1753975505786,32.22361327,176.8,176.79,3.6446]
[1753975505980,46.86333037,176.81,176.79,3.6446]
[1753975506187,5.65582569,176.81,176.79,3.6446]
[1753975506484,0.56750468,176.81,176.79,4.3546]
[1753975506801,0.56750468,176.81,176.79,14.21660379]
[1753975507017,6.22306922,176.82,176.79,4.3546]
[1753975507323,11.12950847,176.81,176.79,3.6446]
[1753975507614,6.35610859,176.8,176.79,3.6446]
[1753975507980,6.35610859,176.8,176.79,15.531]
[1753975508522,16.08539823,176.81,176.79,15.531]
[1753975508704,6.22339444,176.81,176.79,15.531]
[1753975509018,12.97808046,176.81,176.79,15.531]
[1753975509382,11.71079461,176.8,176.79,15.531]
[1753975509785,5.65610859,176.8,176.79,15.531]
[1753975510209,0.56750468,176.81,176.79,15.531]
[1753975510410,6.22297351,176.82,176.79,16.241]
[1753975510608,21.18621356,176.83,176.8,6.76468602]
[1753975510781,0.56750468,176.82,176.79,21.58568602]
[1753975510981,0.56750468,176.82,176.79,15.531]
[1753975510982,7.3221907,176.82,176.79,15.531]
[1753975511387,5.65578869,176.81,176.79,15.531]
[1753975511726,0.56750468,176.8,176.79,15.531]
[1753975512814,1.26750468,176.8,176.79,15.531]
[1753975513019,148.56750468,176.8,176.79,15.531]
[1753975513184,154.05468602,176.8,176.79,15.531]
[1753975513382,194.69468602,176.8,176.79,15.531]
[1753975513581,200.35079461,176.8,176.79,15.531]
[1753975514605,199.65079461,176.8,176.79,15.531]
[1753975516414,216.43547858,176.8,176.79,15.531]
[1753975516719,217.13547858,176.8,176.79,15.531]
[1753975517209,69.83547858,176.8,176.79,15.531]
[1753975517405,86.83698058,176.8,176.79,15.531]
[1753975518615,0.56750468,176.82,176.79,22.29568602]
[1753975518789,0.7,176.84,176.8,0.71]
[1753975518790,0.56750468,176.83,176.8,0.71]
[1753975518996,0.56750468,176.83,176.81,6.05468602]
[1753975519204,0.56750468,176.83,176.81,6.76468602]
[1753975519408,0.56750468,176.83,176.81,6.05468602]
[1753975519605,0.56750468,176.83,176.8,6.05468602]
[1753975519807,0.56750468,176.83,176.8,6.76468602]
[1753975520009,0.56750468,176.83,176.81,6.76468602]
[1753975520197,152.95482922,176.84,176.82,6.05468602]
[1753975520401,152.95482922,176.84,176.82,6.76468602]
[1753975520810,152.95482922,176.84,176.82,0.71]
[1753975521024,147.3,176.84,176.82,6.05468602]